bitfinex/quotes_SOLUSD_20220103
["timestamp","ask_amount","ask_price","bid_price","bid_amount"]
[1641168002846,13.07857395,176.43,176.32,2.7822118]
[1641168004546,13.07857395,176.43,176.33,1.3056]
[1641168012458,13.07857395,176.43,176.34,2.4271948]
[1641168013058,9.7863,176.43,176.34,2.4271948]
[1641168013258,8.5054,176.43,176.34,2.4271948]
[1641168014659,8.5054,176.43,176.34,10.9323948]
[1641168015059,8.5054,176.43,176.35,29.48411878]
[1641168015258,8.5048,176.44,176.35,29.48411878]
[1641168015464,8.5048,176.44,176.35,30.82351878]
[1641168015760,1.2457,176.47,176.36,8.5039]
[1641168015961,9.68166442,176.48,176.35,30.91081246]
[1641168016259,11.97657169,176.48,176.35,39.01081246]
[1641168016759,11.97657169,176.48,176.37,2.53358863]
[1641168017162,11.97657169,176.48,176.39,8.5028]
[1641168017360,11.97657169,176.48,176.4,3.96690187]
[1641168017659,11.97657169,176.48,176.4,4.22690187]
[1641168017660,3.87657169,176.48,176.4,4.22690187]
[1641168017962,1.58166442,176.48,176.41,1.42669368]
[1641168018160,1.58166442,176.48,176.43,8.5009]
[1641168019165,1.58166442,176.48,176.44,2.37442205]
[1641168019363,1.58166442,176.48,176.44,10.87472205]
[1641168019565,1.58166442,176.48,176.44,11.13472205]
[1641168021364,1.58166442,176.48,176.44,8.7603]
[1641168021565,1.58166442,176.48,176.44,8.5003]
[1641168021767,1.58166442,176.48,176.42,37.62152659]
[1641168022565,1.58166442,176.48,176.42,39.77730954]
[1641168022967,1.58166442,176.48,176.42,40.03730954]
[1641168024272,3.82497268,176.48,176.42,40.03730954]
[1641168024969,2.24330826,176.48,176.42,40.03730954]
[1641168025169,8.5014,176.52,176.42,40.03730954]
[1641168026174,8.5014,176.52,176.42,9.8045]
[1641168026372,8.5014,176.52,176.42,1.3035]
[1641168026575,8.5014,176.52,176.4,8.1]
[1641168027070,2.63858575,176.51,176.4,10.78688639]
[1641168027270,8.5025,176.49,176.4,10.78688639]
[1641168027471,2.98821312,176.48,176.4,10.78688639]
[1641168027874,3.48821312,176.48,176.4,10.78688639]
[1641168028273,2.98821312,176.48,176.4,8.1]
[1641168028572,3.74821312,176.48,176.4,8.1]
[1641168028772,3.74821312,176.48,176.4,16.6024]
[1641168029171,12.25101312,176.48,176.4,8.1]
[1641168032574,12.25101312,176.48,176.39,2.53800506]
[1641168033475,12.25101312,176.48,176.38,31.99291691]
[1641168034877,12.25101312,176.48,176.38,2.18571953]
[1641168038582,2.18571953,176.38,176.35,8.1]
[1641168038785,56.87625285,176.36,176.33,0.1447108]
[1641168038987,57.37625285,176.36,176.33,0.1447108]
[1641168039993,3.03219997,176.35,176.33,0.1447108]
[1641168040198,57.37625285,176.36,176.33,0.1447108]
[1641168041188,3.60954097,176.35,176.33,0.1447108]
[1641168041387,4.10954097,176.35,176.33,0.1447108]
[1641168041991,3.03219997,176.35,176.28,9.268]
[1641168042187,56.87625285,176.36,176.28,9.268]
[1641168042692,57.13625285,176.36,176.28,11.92461975]
[1641168043191,65.64435285,176.36,176.28,0.5]
[1641168043392,66.14435285,176.36,176.26,3.2822118]
[1641168043593,66.14435285,176.36,176.26,3.5422118]
[1641168043793,66.14435285,176.36,176.26,0.76]
[1641168044012,66.14435285,176.36,176.26,0.5]
[1641168044214,66.14435285,176.36,176.25,34.04848248]
[1641168044415,66.14435285,176.36,176.26,2.9968373]
[1641168044614,66.14435285,176.36,176.26,3.2568373]
[1641168044816,66.14435285,176.36,176.26,12.2657373]
[1641168045216,66.14435285,176.36,176.26,11.7657373]
[1641168046115,66.14435285,176.36,176.26,12.2657373]
[1641168046419,66.14435285,176.36,176.26,11.7657373]
[1641168048118,65.88435285,176.36,176.26,11.7657373]
[1641168048318,65.38435285,176.36,176.26,12.2657373]
[1641168048519,65.88435285,176.36,176.26,12.2657373]
[1641168048719,65.88435285,176.36,176.26,11.7657373]
[1641168048922,65.38435285,176.36,176.26,12.2657373]
[1641168049120,65.88435285,176.36,176.26,12.2657373]
[1641168050822,65.88435285,176.36,176.26,13.5878373]
[1641168051623,66.14435285,176.36,176.26,13.5878373]
[1641168052227,66.14435285,176.36,176.26,13.3278373]
[1641168053325,66.14435285,176.36,176.26,4.8189373]
[1641168055626,66.14435285,176.36,176.26,13.3277373]
[1641168056230,66.14435285,176.36,176.26,12.8277373]
[1641168057828,66.14435285,176.36,176.26,4.3189373]
[1641168058327,66.14435285,176.36,176.26,7.1011491]
[1641168059729,66.14435285,176.36,176.26,15.6101491]
[1641168060132,66.14435285,176.36,176.26,7.1011491]
[1641168060530,66.14435285,176.36,176.26,5.7790491]
[1641168060735,72.92935285,176.36,176.26,2.7822118]
[1641168060933,81.02935285,176.36,176.26,2.7822118]
[1641168061333,81.02935285,176.36,176.25,2.7822118]
[1641168061732,81.02935285,176.36,176.22,7.72869517]
[1641168061934,83.87201727,176.36,176.22,2.89353043]
[1641168063835,1.58166442,176.35,176.22,2.89353043]
[1641168064033,8.5108,176.32,176.22,2.89353043]
[1641168064434,9.0108,176.32,176.22,2.89353043]
[1641168065339,8.5101,176.34,176.22,20.26443043]
[1641168065537,8.5101,176.34,176.22,26.48043043]
[1641168066235,8.5101,176.34,176.23,1.2942]
[1641168066436,8.5101,176.34,176.25,8.5094]
[1641168066636,8.5101,176.34,176.26,2.79179758]
[1641168066834,65.38535285,176.36,176.26,2.79179758]
[1641168067036,65.88535285,176.36,176.26,3.05179758]
[1641168067639,65.88535285,176.36,176.26,4.26999758]
[1641168068540,66.14535285,176.36,176.26,4.26999758]
[1641168068738,66.14535285,176.36,176.26,12.77889758]
[1641168072141,66.00064205,176.36,176.26,13.27889758]
[1641168072540,66.00064205,176.36,176.26,12.77889758]
[1641168073150,66.00064205,176.36,176.26,12.51889758]
[1641168073348,66.00064205,176.36,176.26,13.01889758]
[1641168073551,66.00064205,176.36,176.26,12.51889758]
[1641168074852,66.00064205,176.36,176.26,4.00999758]
[1641168077454,66.00064205,176.36,176.26,12.51909758]
[1641168080080,66.00064205,176.36,176.26,4.00999758]
[1641168082785,66.00064205,176.36,176.26,12.51909758]
[1641168083897,66.00064205,176.36,176.26,13.01909758]
[1641168085485,66.00064205,176.36,176.26,12.51909758]
[1641168087991,66.00064205,176.36,176.26,4.00999758]
[1641168090195,66.00064205,176.36,176.26,12.51909758]
[1641168090393,66.00064205,176.36,176.26,4.00999758]
[1641168092200,65.24064205,176.36,176.26,4.00999758]
[1641168092400,67.02414205,176.36,176.26,4.00999758]
[1641168093200,67.02414205,176.36,176.26,12.51909758]
[1641168093599,67.28414205,176.36,176.26,12.51909758]
[1641168095001,67.28414205,176.36,176.26,13.27909758]
[1641168095204,66.78414205,176.36,176.26,13.27909758]
[1641168095405,66.78414205,176.36,176.26,12.51909758]
[1641168095606,66.78414205,176.36,176.26,4.00999758]
[1641168096426,67.28414205,176.36,176.26,4.00999758]
[1641168105044,67.28414205,176.36,176.26,12.51899758]
[1641168105941,67.28414205,176.36,176.26,13.01899758]
[1641168106143,67.28414205,176.36,176.26,12.51899758]
[1641168106744,67.28414205,176.36,176.26,1.2182]
[1641168107842,67.28414205,176.36,176.26,3.89553358]
[1641168108042,67.28414205,176.36,176.26,1.2182]
[1641168108241,67.28414205,176.36,176.25,8.1]
[1641168108441,67.28414205,176.36,176.23,2.7822118]
[1641168109144,8.5119,176.28,176.21,9.4329]
[1641168109552,9.0119,176.28,176.21,9.4329]
[1641168109952,9.0119,176.28,176.19,82.91253631]
[1641168110349,9.0119,176.28,176.19,3.47873631]
[1641168111851,9.0119,176.28,176.19,0.69652451]
[1641168112851,10.59356442,176.28,176.19,0.19652451]
[1641168113051,10.85356442,176.28,176.19,0.19652451]
[1641168113652,1.42669368,176.27,176.19,0.19652451]
[1641168113853,8.1,176.26,176.19,0.19652451]
[1641168114054,8.5178,176.23,176.19,0.19652451]
[1641168114357,8.1,176.22,176.19,0.19652451]
[1641168114554,3.60954097,176.21,176.19,0.19652451]
[1641168114855,4.10954097,176.21,176.19,0.19652451]
[1641168115054,12.62804097,176.21,176.19,0.19652451]
[1641168116756,12.88804097,176.21,176.19,0.19652451]
[1641168118457,12.38804097,176.21,176.2,2.26641938]
[1641168118657,12.12804097,176.21,176.2,2.26641938]
[1641168118858,0.577341,176.21,176.2,2.26641938]
[1641168119357,10.09666442,176.23,176.2,4.72127834]
[1641168119557,8.515,176.23,176.2,4.72127834]
[1641168119959,8.775,176.23,176.2,4.72127834]
[1641168120762,8.775,176.23,176.19,0.19652451]
[1641168120958,9.275,176.23,176.15,3.9645]
[1641168121258,8.775,176.23,176.15,12.0645]
[1641168121461,9.275,176.23,176.15,3.9645]
[1641168121759,9.275,176.23,176.15,35.12700485]
[1641168121959,9.015,176.23,176.15,35.38700485]
[1641168122160,0.5,176.23,176.15,35.88700485]
[1641168122360,8.514,176.25,176.16,8.1]
[1641168122558,8.514,176.25,176.17,1.3255]
[1641168122784,8.514,176.25,176.15,33.28084892]
[1641168122986,9.014,176.25,176.15,32.78084892]
[1641168124083,10.59566442,176.25,176.15,32.78084892]
[1641168124284,18.95566442,176.25,176.15,32.78084892]
[1641168124986,17.374,176.25,176.15,32.78084892]
[1641168125385,9.274,176.25,176.15,33.28084892]
[1641168125598,9.014,176.25,176.16,8.1]
[1641168125785,1.58166442,176.26,176.17,2.78413256]
[1641168125987,1.58166442,176.26,176.18,8.1]
[1641168126192,1.58166442,176.26,176.2,8.5116]
[1641168126487,1.58166442,176.3,176.21,2.47700205]
[1641168126689,1.58166442,176.3,176.21,10.57700205]
[1641168126887,2.08166442,176.3,176.21,11.33700205]
[1641168127088,1.58166442,176.3,176.22,23.79856995]
[1641168127288,1.58166442,176.3,176.22,31.89856995]
[1641168127489,1.58166442,176.3,176.22,32.65856995]
[1641168127687,1.58166442,176.32,176.22,32.65856995]
[1641168128289,8.5096,176.35,176.22,32.65856995]
[1641168128489,58.31320647,176.36,176.22,32.65856995]
[1641168128688,58.31320647,176.36,176.22,41.16876995]
[1641168128890,58.81320647,176.36,176.22,32.15856995]
[1641168129089,8.5107,176.33,176.22,32.15856995]
[1641168129389,9.0107,176.33,176.22,32.15856995]
[1641168129591,9.2707,176.33,176.22,31.89856995]
[1641168129790,9.0107,176.33,176.22,31.89856995]
[1641168130188,8.5107,176.33,176.22,31.89856995]
[1641168130992,8.7707,176.33,176.22,32.15856995]
[1641168131191,8.7707,176.33,176.22,31.89856995]
[1641168131593,9.2707,176.33,176.22,31.89856995]
[1641168132193,10.85236442,176.33,176.22,31.89856995]
[1641168132392,10.85236442,176.33,176.22,23.79856995]
[1641168132697,12.2790581,176.33,176.19,84.3199]
[1641168132893,12.2790581,176.33,176.19,76.2199]
[1641168133095,1.58166442,176.31,176.19,84.3199]
[1641168133296,8.5135,176.27,176.19,84.3199]
[1641168133497,9.0135,176.27,176.19,84.3199]
[1641168133700,9.0135,176.27,176.2,28.32561045]
[1641168133902,0.5,176.27,176.2,28.32561045]
[1641168134297,1.58166442,176.3,176.2,28.32561045]
[1641168134298,2.08166442,176.3,176.2,28.32561045]
[1641168134499,0.5,176.3,176.2,28.32561045]
[1641168134898,8.5127,176.29,176.2,28.32561045]
[1641168135300,9.0127,176.29,176.2,28.32561045]
[1641168136300,9.0127,176.29,176.21,8.1]
[1641168136807,9.0127,176.29,176.2,28.32561045]
[1641168137007,9.2727,176.29,176.21,8.1]
[1641168137208,9.2727,176.29,176.22,8.1]
[1641168137409,9.2727,176.29,176.2,28.32561045]
[1641168137610,9.2727,176.29,176.2,36.42561045]
[1641168137813,9.2727,176.29,176.21,8.1]
[1641168138010,9.2727,176.29,176.2,28.32561045]
[1641168138209,9.2727,176.29,176.2,28.58561045]
[1641168138510,9.2727,176.29,176.21,8.1]
[1641168138711,9.2727,176.29,176.2,31.36782225]
[1641168138911,29.95466442,176.35,176.21,8.1]
[1641168139210,58.31320647,176.36,176.21,8.36]
[1641168139412,0.5,176.35,176.21,8.86]
[1641168140011,57.23154205,176.36,176.24,2.15149866]
[1641168140216,8.5097,176.35,176.25,8.1]
[1641168140415,9.0097,176.35,176.25,8.1]
[1641168140615,9.2697,176.35,176.24,10.25149866]
[1641168140813,8.7697,176.35,176.24,11.47119866]
[1641168141940,9.2697,176.35,176.24,11.47119866]
[1641168142943,9.2697,176.35,176.25,8.1]
[1641168143141,9.2697,176.35,176.24,11.73119866]
[1641168143742,8.7697,176.35,176.24,11.73119866]
[1641168143944,8.7697,176.35,176.24,12.23119866]
[1641168144143,8.7697,176.35,176.24,11.73119866]
[1641168144743,8.7697,176.35,176.24,12.23119866]
[1641168144943,8.7697,176.35,176.24,11.47119866]
[1641168144944,9.2697,176.35,176.24,11.47119866]
[1641168145144,9.2697,176.35,176.24,3.37119866]
[1641168145743,9.2697,176.35,176.25,8.1]
[1641168146143,9.2697,176.35,176.24,3.37119866]
[1641168146343,9.2697,176.35,176.24,11.97119866]
[1641168147546,9.2697,176.35,176.24,12.23119866]
[1641168147746,9.2697,176.35,176.24,11.47119866]
[1641168147947,9.2697,176.35,176.24,3.37119866]
[1641168148748,10.69639368,176.35,176.24,3.37119866]
[1641168148946,12.2780581,176.35,176.24,3.37119866]
[1641168149147,10.85136442,176.35,176.25,8.1]
[1641168149549,9.2697,176.35,176.25,8.36]
[1641168149750,9.2697,176.35,176.25,0.26]
[1641168150047,9.2697,176.35,176.24,11.47119866]
[1641168151349,9.2697,176.35,176.24,11.73119866]
[1641168151749,9.07317549,176.35,176.24,11.73119866]
[1641168152350,9.07317549,176.35,176.24,12.23119866]
[1641168152550,9.07317549,176.35,176.24,11.73119866]
[1641168152750,9.07317549,176.35,176.24,11.47119866]
[1641168152949,9.07317549,176.35,176.23,84.2824]
[1641168152950,9.07317549,176.35,176.23,75.7726]
[1641168153153,18.59986917,176.35,176.23,75.7726]
[1641168153352,10.49986917,176.35,176.23,75.7726]
[1641168153751,8.1,176.34,176.23,75.7726]
[1641168153950,0.5,176.34,176.23,75.7726]
[1641168154150,8.5129,176.29,176.22,2.7822118]
[1641168154352,9.0129,176.29,176.21,3.76171388]
[1641168156352,9.2729,176.29,176.21,3.76171388]
[1641168156751,8.7729,176.29,176.21,3.76171388]
[1641168156952,9.2729,176.29,176.21,3.76171388]
[1641168157952,8.7729,176.29,176.21,3.76171388]
[1641168158156,9.2729,176.29,176.21,3.76171388]
[1641168158952,8.7729,176.29,176.21,3.76171388]
[1641168159252,0.26,176.29,176.22,8.1]
[1641168159457,0.76,176.29,176.22,8.1]
[1641168159657,0.5,176.29,176.22,0.26]
[1641168159858,2.08166442,176.34,176.22,9.6743]
[1641168160460,3.32956442,176.34,176.22,9.6743]
[1641168160761,8.5119,176.3,176.22,9.6743]
[1641168160959,9.0119,176.3,176.22,1.3143]
[1641168161358,9.0119,176.3,176.2,25.41972948]
[1641168163167,9.2719,176.3,176.2,33.51972948]
[1641168163380,9.2719,176.3,176.2,25.41972948]
[1641168163966,9.2719,176.3,176.22,2.32028701]
[1641168165870,9.2719,176.3,176.21,1.2983]
[1641168166267,9.2719,176.3,176.18,2.7822118]
[1641168166268,8.1,176.29,176.18,2.7822118]
[1641168166465,8.5151,176.24,176.18,2.7822118]
[1641168166866,9.2751,176.24,176.18,2.25651876]
[1641168167067,9.2751,176.24,176.16,4.1200118]
[1641168167266,9.2751,176.24,176.16,26.99468619]
[1641168167693,9.2751,176.24,176.16,24.47247439]
[1641168167694,0.26,176.24,176.16,24.47247439]
[1641168167891,1.8117,176.28,176.17,2.75247382]
[1641168168092,2.0717,176.28,176.17,2.75247382]
[1641168168791,2.0717,176.28,176.18,1.2244]
[1641168169892,8.5142,176.25,176.18,1.2244]
[1641168170292,9.0142,176.25,176.18,1.2244]
[1641168172397,9.2742,176.25,176.18,1.2244]
[1641168172803,28.3789,176.31,176.19,8.1]
[1641168173002,1.58166442,176.32,176.2,2.55320125]
[1641168173297,1.58166442,176.32,176.21,1.3075]
[1641168173497,1.58166442,176.32,176.21,1.5675]
[1641168173700,1.58166442,176.32,176.21,1.3075]
[1641168173900,1.58166442,176.33,176.21,1.3075]
[1641168174098,1.58166442,176.33,176.21,1.5675]
[1641168174298,1.84166442,176.33,176.21,1.5675]
[1641168174798,1.84166442,176.33,176.23,32.84395677]
[1641168174799,1.58166442,176.33,176.23,32.84395677]
[1641168174999,6.442e-05,176.34,176.24,109.33]
[1641168175399,6.442e-05,176.34,176.25,1.42669368]
[1641168175598,6.442e-05,176.34,176.27,2.81453386]
[1641168175800,6.442e-05,176.34,176.28,8.1]
[1641168175998,6.442e-05,176.34,176.28,10.28669368]
[1641168176202,6.442e-05,176.34,176.3,8.5065]
[1641168176402,56.99154205,176.36,176.31,8.1]
[1641168176605,57.49154205,176.36,176.3,2.7822118]
[1641168177205,57.49154205,176.36,176.28,2.7822118]
[1641168177403,57.49154205,176.36,176.28,5.07224411]
[1641168177703,66.00074205,176.36,176.28,5.07224411]
[1641168178407,66.00074205,176.36,176.28,2.29003231]
[1641168179605,66.00074205,176.36,176.26,29.34359943]
[1641168180106,66.00074205,176.36,176.26,26.56138763]
[1641168180707,66.00074205,176.36,176.27,2.94792829]
[1641168180906,66.00074205,176.36,176.27,8.1]
[1641168181605,66.00074205,176.36,176.27,10.8822118]
[1641168182107,66.00074205,176.36,176.26,2.7822118]
[1641168182406,72.39343573,176.36,176.26,2.7822118]
[1641168182607,8.1,176.35,176.26,2.7822118]
[1641168182808,8.5132,176.3,176.24,2.7822118]
[1641168183209,9.0132,176.3,176.24,2.7822118]
[1641168183910,9.0132,176.3,176.23,2.40743783]
[1641168184509,9.0132,176.3,176.23,2.7822118]
[1641168185611,9.0132,176.3,176.22,5.42999822]
[1641168186513,9.2732,176.3,176.22,5.42999822]
[1641168188313,9.2732,176.3,176.22,2.64778642]
[1641168190214,9.2732,176.3,176.21,2.7822118]
[1641168190414,17.3732,176.3,176.21,2.7822118]
[1641168190813,18.79989368,176.3,176.21,2.7822118]
[1641168191415,18.79989368,176.3,176.21,2.63692736]
[1641168191617,17.1132,176.3,176.21,2.63692736]
[1641168192415,17.1132,176.3,176.21,5.41913916]
[1641168193715,17.1132,176.3,176.22,2.7822118]
[1641168194119,17.1132,176.3,176.21,2.7822118]
[1641168194323,23.29689368,176.3,176.21,2.7822118]
[1641168195120,23.29689368,176.3,176.19,2.80639163]
[1641168195318,18.79989368,176.3,176.19,2.80639163]
[1641168196121,17.3732,176.3,176.19,2.80639163]
[1641168196530,17.3732,176.3,176.19,5.58860343]
[1641168197528,17.3732,176.3,176.21,2.7822118]
[1641168197930,17.3732,176.3,176.22,2.95236938]
[1641168198930,17.3732,176.3,176.19,2.7822118]
[1641168199730,17.3732,176.3,176.18,2.7822118]
[1641168199931,18.7075,176.3,176.19,2.53390194]
[1641168200533,18.7075,176.3,176.19,5.31611374]
[1641168201235,18.7075,176.3,176.2,1.2166]
[1641168202053,18.4475,176.3,176.2,1.2166]
[1641168204657,20.13419368,176.3,176.19,5.31611374]
[1641168204956,20.13419368,176.3,176.19,2.53390194]
[1641168208360,18.7075,176.3,176.19,2.53390194]
[1641168208759,18.4475,176.3,176.19,2.53390194]
[1641168211261,18.4475,176.3,176.19,3.85650194]
[1641168211661,18.4475,176.3,176.19,6.63871374]
[1641168212163,18.4475,176.3,176.19,3.85650194]
[1641168212367,18.7075,176.3,176.19,3.85650194]
[1641168214968,18.7075,176.3,176.19,4.11650194]
[1641168215267,18.7075,176.3,176.19,3.85650194]
[1641168216974,18.7075,176.3,176.19,6.63871374]
[1641168217674,8.5132,176.3,176.19,15.15101374]
[1641168217871,8.5132,176.3,176.2,8.1]
[1641168218886,9.0132,176.3,176.2,8.1]
[1641168219075,9.0132,176.3,176.2,11.1422118]
[1641168219275,9.0132,176.3,176.2,19.6541118]
[1641168219474,9.0132,176.3,176.21,1.2902]
[1641168220080,9.0132,176.3,176.21,4.0724118]
[1641168220377,9.2732,176.3,176.21,4.0724118]
[1641168220576,9.2732,176.3,176.21,1.2902]
[1641168220777,9.2732,176.3,176.21,4.13424355]
[1641168222278,9.2732,176.3,176.19,2.7822118]
[1641168222279,9.2732,176.3,176.18,10.8822118]
[1641168222478,9.2732,176.3,176.19,1.2616]
[1641168223479,9.2732,176.3,176.2,2.48875297]
[1641168228606,9.2732,176.3,176.21,1.2933]
[1641168230107,9.2732,176.3,176.19,2.7822118]
[1641168230310,9.2732,176.3,176.18,2.7822118]
[1641168230510,10.69989368,176.3,176.18,2.7822118]
[1641168230917,10.69989368,176.3,176.19,2.53394423]
[1641168231113,12.00909368,176.3,176.19,2.53394423]
[1641168232514,8.1,176.29,176.19,2.53394423]
[1641168232716,8.5154,176.24,176.19,2.53394423]
[1641168232916,9.0154,176.24,176.17,1.3176]
[1641168233916,9.0154,176.24,176.17,4.13309537]
[1641168236122,8.5154,176.24,176.17,4.13309537]
[1641168236418,8.7754,176.24,176.17,6.91530717]
[1641168236816,8.5136,176.25,176.17,7.17530717]
[1641168237218,9.0136,176.25,176.17,6.91530717]
[1641168238518,8.0136,176.25,176.17,6.91530717]
[1641168238821,8.0136,176.25,176.17,4.13309537]
[1641168240619,8.2736,176.25,176.17,4.13309537]
[1641168242021,7.5136,176.25,176.17,4.39309537]
[1641168242220,0.5,176.25,176.17,4.39309537]
[1641168242421,8.5132,176.26,176.17,4.39309537]
[1641168242620,28.8779,176.3,176.17,4.13309537]
[1641168242820,28.8779,176.3,176.17,6.91530717]
[1641168243019,0.5,176.3,176.17,6.91530717]
[1641168243420,1.42669368,176.29,176.17,6.91530717]
[1641168243621,29.80729368,176.29,176.17,6.91530717]
[1641168243822,28.8806,176.29,176.17,7.17530717]
[1641168244323,28.8806,176.29,176.17,6.91530717]
[1641168244521,0.76,176.29,176.17,6.91530717]
[1641168244921,8.5143,176.24,176.17,6.91530717]
[1641168245926,2.091,176.31,176.17,4.39309537]
[1641168246224,2.091,176.31,176.17,4.13309537]
[1641168246225,8.5135,176.26,176.17,4.13309537]
[1641168246426,9.0135,176.26,176.17,6.91530717]
[1641168247127,9.0135,176.26,176.17,4.13309537]
[1641168248131,9.0135,176.26,176.17,6.91530717]
[1641168248831,9.0135,176.26,176.17,15.42880717]
[1641168249035,9.0135,176.26,176.17,6.91530717]
[1641168251338,9.2735,176.26,176.17,6.91530717]
[1641168252239,9.2735,176.26,176.17,4.13309537]
[1641168258668,9.0135,176.26,176.17,4.13309537]
[1641168259072,9.0135,176.26,176.17,6.91530717]
[1641168260477,9.2735,176.26,176.17,6.91530717]
[1641168262077,9.2735,176.26,176.17,4.13309537]
[1641168266483,9.2735,176.26,176.17,1.3176]
[1641168267683,9.2735,176.26,176.17,3.9971009]
[1641168267884,10.5603,176.26,176.17,3.9971009]
[1641168271589,10.5603,176.26,176.17,2.6795009]
[1641168276101,19.1653,176.26,176.17,2.6795009]
[1641168278908,10.3003,176.26,176.17,2.6795009]
[1641168279213,9.0135,176.26,176.17,2.6795009]
[1641168279406,9.0135,176.26,176.18,1.3119]
[1641168279607,0.5,176.26,176.18,1.3119]
[1641168280006,9.0127,176.27,176.18,9.825]
[1641168280625,9.0127,176.27,176.18,10.085]
[1641168280829,9.0127,176.27,176.18,9.825]
[1641168281825,9.0127,176.27,176.18,1.3119]
[1641168282525,9.2727,176.27,176.18,1.3119]
[1641168290339,9.2727,176.27,176.18,1.8119]
[1641168291340,9.2727,176.27,176.18,1.3119]
[1641168291538,9.2727,176.27,176.25,0.08892685]
[1641168291741,3.60954097,176.26,176.25,0.08892685]
[1641168291938,12.62314097,176.26,176.25,0.08892685]
[1641168292340,12.88314097,176.26,176.25,0.08892685]
[1641168294643,3.60954097,176.26,176.25,0.08892685]
[1641168295950,88.6535,176.34,176.25,2.54378581]
[1641168295951,28.3725,176.33,176.25,2.54378581]
[1641168296346,28.8725,176.33,176.25,2.54378581]
[1641168297047,28.8725,176.33,176.25,0.08892685]
[1641168297749,8.5117,176.29,176.25,0.08892685]
[1641168297950,9.0117,176.29,176.25,0.08892685]
[1641168298152,8.5117,176.29,176.25,0.08892685]
[1641168298349,9.0117,176.29,176.25,0.08892685]
[1641168299349,8.5112,176.3,176.25,0.08892685]
[1641168299550,0.5,176.33,176.25,0.08892685]
[1641168299752,107.66387207,176.35,176.25,0.08892685]
[1641168299951,108.16387207,176.35,176.25,0.08892685]
[1641168300349,8.5106,176.31,176.25,0.08892685]
[1641168300549,0.5,176.35,176.25,0.08892685]
[1641168300951,612.36613097,176.36,176.25,0.08892685]
[1641168301352,57.23154205,176.36,176.25,0.08892685]
[1641168301559,8.5103,176.32,176.25,0.08892685]
[1641168301951,9.2703,176.32,176.25,0.08892685]
[1641168304852,8.7703,176.32,176.25,0.08892685]
[1641168306355,9.2703,176.32,176.25,0.08892685]
[1641168307379,8.7703,176.32,176.25,0.08892685]
[1641168307978,9.2703,176.32,176.25,0.08892685]
[1641168309478,8.7703,176.32,176.25,0.08892685]
[1641168309878,9.2703,176.32,176.25,0.08892685]
[1641168311881,8.7703,176.32,176.25,0.08892685]
[1641168312379,9.2703,176.32,176.25,0.08892685]
[1641168318190,9.0103,176.32,176.25,0.08892685]
[1641168318992,8.5103,176.32,176.25,0.08892685]
[1641168319397,9.0103,176.32,176.25,0.08892685]
[1641168319593,8.5094,176.34,176.25,8.59852685]
[1641168319993,9.0094,176.34,176.25,8.85852685]
[1641168320194,9.0094,176.34,176.25,9.35852685]
[1641168320495,8.5094,176.34,176.26,1.2894]
[1641168320699,0.5,176.34,176.26,9.7982]
[1641168320895,0.5,176.34,176.26,10.0582]
[1641168321397,9.0086,176.35,176.26,10.0582]
[1641168321998,9.2686,176.35,176.26,9.7982]
[1641168322296,9.2686,176.35,176.26,1.2894]
[1641168322901,10.5745,176.35,176.26,1.2894]
[1641168323799,9.2686,176.35,176.26,1.2894]
[1641168325599,9.2686,176.35,176.25,2.44164696]
[1641168325800,9.2686,176.35,176.25,2.70164696]
[1641168326400,10.539,176.35,176.25,2.70164696]
[1641168326605,9.2686,176.35,176.25,2.70164696]
[1641168326804,9.2686,176.35,176.25,11.21114696]
[1641168327106,9.2686,176.35,176.26,1.3379]
[1641168327302,9.2686,176.35,176.26,6.5039]
[1641168327600,9.2686,176.35,176.26,6.7639]
[1641168328902,9.2686,176.35,176.26,15.2727]
[1641168329304,0.76,176.35,176.26,15.2727]
[1641168329503,0.5,176.35,176.26,15.2727]
[1641168329802,57.23154205,176.36,176.26,15.2727]
[1641168330004,57.23154205,176.36,176.26,6.7639]
[1641168330206,57.23154205,176.36,176.26,1.5979]
[1641168330606,8.5095,176.33,176.26,1.5979]
[1641168331005,8.0095,176.33,176.26,1.5979]
[1641168331606,8.5095,176.33,176.26,1.5979]
[1641168332004,8.5095,176.33,176.26,0.26]
[1641168332208,8.5095,176.33,176.25,0.08892685]
[1641168332408,8.7695,176.33,176.25,0.08892685]
[1641168332810,10.19619368,176.33,176.25,0.08892685]
[1641168333209,8.7695,176.33,176.25,0.08892685]